Workbook

Sheet AER CF (hidden)
B1: AER CONDITIONAL FORMATTING
B4: CONDITIONAL FORMATTING MAP
F5: =INDEX(dms_CF_3.6.1, MATCH(dms_TradingName,dms_CF_TradingName))="Y" | G5: =INDEX(dms_CF_3.6.5, MATCH(dms_TradingName,dms_CF_TradingName))="Y" | H5: =INDEX(dms_CF_3.6.6, MATCH(dms_TradingName,dms_CF_TradingName))="Y" | I5: =INDEX(dms_CF_3.6.7.1, MATCH(dms_TradingName,dms_CF_TradingName))="Y" | J5: =INDEX(dms_CF_3.6.7.2, MATCH(dms_TradingName,dms_CF_TradingName))="Y" | K5: =INDEX(dms_CF_3.6.7.3, MATCH(dms_TradingName,dms_CF_TradingName))="Y" | L5: =INDEX(dms_CF_3.6.7.4, MATCH(dms_TradingName,dms_CF_TradingName))="Y" | M5: =INDEX(dms_CF_3.6.8, MATCH(dms_TradingName,dms_CF_TradingName))="Y" | N5: =INDEX(dms_CF_4.1, MATCH(dms_TradingName,dms_CF_TradingName))="Y" | O5: =INDEX(dms_CF_6.6.1, MATCH(dms_TradingName,dms_CF_TradingName))="Y" | P5: =INDEX(dms_CF_6.8, MATCH(dms_TradingName,dms_CF_TradingName))="Y" | Q5: =INDEX(dms_CF_7.12, MATCH(dms_TradingName,dms_CF_TradingName))="Y" | R5: =INDEX(dms_CF_8.1_A, MATCH(dms_TradingName,dms_CF_TradingName))="Y" | S5: =INDEX(dms_CF_8.1_B, MATCH(dms_TradingName,dms_CF_TradingName))="Y" | T5: =INDEX(dms_CF_8.1_Neg, MATCH(dms_TradingName,dms_CF_TradingName))="Y" | U5: =INDEX(dms_CF_4.4.1_Neg, MATCH(dms_TradingName,dms_CF_TradingName))="Y"
B6: dms_CF_TradingName | C6: JurisdictionList | D6: Sector | E6: Segment | F6: dms_CF_3.6.1 | G6: dms_CF_3.6.5 | H6: dms_CF_3.6.6 | I6: dms_CF_3.6.7.1 | J6: dms_CF_3.6.7.2 | K6: dms_CF_3.6.7.3 | L6: dms_CF_3.6.7.4 | M6: dms_CF_3.6.8 | N6: dms_CF_4.1 | O6: dms_CF_6.6.1 | P6: dms_CF_6.8 | Q6: dms_CF_7.12 | R6: dms_CF_8.1_A | S6: dms_CF_8.1_B | T6: dms_CF_8.1_Neg | U6: dms_CF_4.4.1 | V6: dms_CF_MAIFI_flag | W6: Spare1 | X6: Spare2
B7: ActewAGL Distribution | C7: ACT | D7: Electricity | E7: Distribution | G7: Y | I7: Y | J7: Y | K7: N | L7: Y | M7: N | N7: Y | O7: N | P7: Y | Q7: Y | R7: N | S7: Y | T7: Y | U7: N | V7: N | W7: N | X7: N
B8: Ausgrid | C8: NSW | D8: Electricity | E8: Distribution | G8: Y | I8: N | J8: N | K8: N | L8: Y | M8: N | N8: Y | O8: N | P8: Y | Q8: Y | R8: N | S8: Y | T8: Y | U8: N | V8: N | W8: N | X8: N
B9: AusNet (D) | C9: Vic | D9: Electricity | E9: Distribution | G9: N | I9: N | J9: N | K9: N | L9: N | M9: N | N9: Y | O9: N | P9: Y | Q9: N | R9: N | S9: N | T9: Y | U9: N | V9: N | W9: N | X9: N
B10: AusNet (T) | C10: Vic | D10: Electricity | E10: Transmission | G10: N | I10: N | J10: N | K10: N | L10: N | M10: N | N10: Y | O10: N | P10: Y | Q10: N | R10: N | S10: N | T10: Y | U10: N | V10: N | W10: N | X10: N
B11: CitiPower | C11: Vic | D11: Electricity | E11: Distribution | G11: N | I11: N | J11: N | K11: N | L11: N | M11: N | N11: Y | O11: N | P11: Y | Q11: N | R11: N | S11: N | T11: Y | U11: N | V11: N | W11: N | X11: N
B12: Directlink | C12: Qld | D12: Electricity | E12: Transmission | G12: N | I12: N | J12: N | K12: N | L12: N | M12: N | N12: Y | O12: N | P12: Y | Q12: N | R12: N | S12: Y | T12: Y | U12: N | V12: N | W12: N | X12: N
B13: ElectraNet | C13: SA | D13: Electricity | E13: Transmission | G13: N | I13: N | J13: N | K13: N | L13: N | M13: N | N13: Y | O13: N | P13: Y | Q13: N | R13: N | S13: Y | T13: Y | U13: N | V13: N | W13: N | X13: N
B14: Endeavour Energy | C14: NSW | D14: Electricity | E14: Distribution | G14: Y | I14: N | J14: N | K14: N | L14: Y | M14: N | N14: Y | O14: N | P14: Y | Q14: Y | R14: N | S14: Y | T14: Y | U14: Y | V14: N | W14: N | X14: N
B15: Energex | C15: Qld | D15: Electricity | E15: Distribution | G15: Y | I15: N | J15: N | K15: N | L15: N | M15: N | N15: Y | O15: N | P15: Y | Q15: Y | R15: N | S15: Y | T15: Y | U15: Y | V15: N | W15: N | X15: N
B16: Ergon Energy | C16: Qld | D16: Electricity | E16: Distribution | G16: Y | I16: N | J16: N | K16: N | L16: N | M16: N | N16: Y | O16: N | P16: Y | Q16: Y | R16: N | S16: Y | T16: Y | U16: N | V16: N | W16: N | X16: N
B17: Essential Energy | C17: NSW | D17: Electricity | E17: Distribution | G17: Y | I17: N | J17: N | K17: N | L17: Y | M17: N | N17: Y | O17: N | P17: Y | Q17: Y | R17: N | S17: Y | T17: Y | U17: N | V17: N | W17: N | X17: N
B18: Jemena Electricity | C18: Vic | D18: Electricity | E18: Distribution | G18: N | I18: N | J18: N | K18: N | L18: N | M18: N | N18: Y | O18: N | P18: Y | Q18: N | R18: N | S18: N | T18: Y | U18: N | V18: N | W18: N | X18: N
B19: Murraylink | C19: SA | D19: Electricity | E19: Transmission | G19: N | I19: N | J19: N | K19: N | L19: N | M19: N | N19: Y | O19: N | P19: Y | Q19: N | R19: N | S19: Y | T19: Y | U19: N | V19: N | W19: N | X19: N
B20: Power and Water | C20: NT | D20: Electricity | E20: Distribution | G20: N | I20: N | J20: Y | K20: N | L20: N | M20: Y | N20: Y | O20: Y | P20: Y | Q20: Y | R20: N | S20: Y | T20: Y | U20: N | V20: N | W20: N | X20: N
B21: Powercor Australia | C21: Vic | D21: Electricity | E21: Distribution | G21: N | I21: N | J21: N | K21: N | L21: N | M21: N | N21: Y | O21: N | P21: Y | Q21: N | R21: N | S21: N | T21: Y | U21: N | V21: N | W21: N | X21: N
B22: Powerlink | C22: Qld | D22: Electricity | E22: Transmission | G22: N | I22: N | J22: N | K22: N | L22: N | M22: N | N22: Y | O22: N | P22: Y | Q22: N | R22: N | S22: Y | T22: Y | U22: N | V22: N | W22: N | X22: N
B23: SA Power Networks | C23: SA | D23: Electricity | E23: Distribution | G23: Y | I23: N | J23: N | K23: N | L23: N | M23: N | N23: Y | O23: N | P23: Y | Q23: Y | R23: Y | S23: Y | T23: N | U23: N | V23: N | W23: N | X23: N
B24: TasNetworks (D) | C24: Tas | D24: Electricity | E24: Distribution | G24: Y | I24: N | J24: N | K24: N | L24: N | M24: N | N24: Y | O24: N | P24: Y | Q24: Y | R24: N | S24: Y | T24: Y | U24: N | V24: N | W24: N | X24: N
B25: TasNetworks (T) | C25: Tas | D25: Electricity | E25: Transmission | G25: N | I25: N | J25: N | K25: N | L25: N | M25: N | N25: Y | O25: N | P25: Y | Q25: N | R25: N | S25: Y | T25: Y | U25: N | V25: N | W25: N | X25: N
B26: TransGrid | C26: NSW | D26: Electricity | E26: Transmission | G26: N | I26: N | J26: N | K26: N | L26: N | M26: N | N26: Y | O26: N | P26: Y | Q26: N | R26: N | S26: Y | T26: Y | U26: N | V26: N | W26: N | X26: N
B27: United Energy | C27: Vic | D27: Electricity | E27: Distribution | G27: N | I27: N | J27: N | K27: N | L27: N | M27: N | N27: Y | O27: N | P27: Y | Q27: N | R27: N | S27: N | T27: Y | U27: N | V27: N | W27: N | X27: N
B30: Confidential
B31: Amended
B33: Worksheet 6.2 STPIS reliability
B34: Formula | F34: Applied to:
B36: =INDEX(dms_CBD_flag,MATCH(dms_TradingName,dms_TradingName_List))="NO" | F36: $D$11,$D$17,$D$23,$D$33,$D$39,$D$45,$D$55,$D$61,$D$67,$D$77,$D$83,$D$89
B37: =INDEX(dms_Urban_flag,MATCH(dms_TradingName,dms_TradingName_List))="NO" | F37: $D$12,$D$18,$D$24,$D$56,$D$62,$D$78,$D$68,$D$84
B38: =INDEX(dms_ShortRural_flag,MATCH(dms_TradingName,dms_TradingName_List))="NO" | F38: $D$13,$D$19,$D$25,$D$57,$D$63,$D$69,$D$79,$D$85
B39: =INDEX(dms_LongRural_flag,MATCH(dms_TradingName,dms_TradingName_List))="NO" | F39: $D$14,$D$20,$D$26,$D$58,$D$64,$D$65,$D$70,$D$71,$D$80,$D$86
B40: =INDEX(dms_FeederType_5_flag,MATCH(dms_TradingName,dms_TradingName_List))="NO" | F40: $D$87,$D$81,$D$71,$D$65,$D$59,$D$49,$D$43,$D$37,$D$21,$D$15
B41: =dms_MAIFI_Flag="No" | F41: $D$55:$D$72
B44: Business & other details
B45: =(INDEX(dms_Model_Span,MATCH(dms_Model,dms_Model_List))>1)
B46: =(INDEX(dms_Model_Span,MATCH(dms_Model,dms_Model_List))=1)
B49: STYLES IN USE
C50: dms_1
C51: dms_2
C52: dms_3
C53: dms_4
C54: dms_5
C55: dms_NUM
C56: dms_NUM%
C57: dms_Row_Locked
C58: dms_Row1
C59: dms_Row2
C60: dms_T1
C61: dms_T2
C62: dms_BH
C63: dms_BY1
C64: dms_BY2
C65: dms_GH
C66: dms_GY1
C67: dms_GY2
C126: 0
C127: =IFERROR(IF(dms_Model="ARR",(MAX(0,dms_0608_LastRow-dms_0608_OffsetRows)),"not an ARR"),"0") -> not an ARR

Sheet AER NRs (hidden)
B1: AER NAMED RANGES
B3: DROP DOWN SELECTORS USED IN WORKBOOKS
B5: COVER SHEET | C5: dms_DataQuality_List | D5: dms_Confid_status_List
C6: -- select -- | D6: -- select --
C7: Actual | D7: Public
C8: Estimate | D8: Confidential
C9: Consolidated
C12: For all files either AER or business needs to be able to specify the type of submission | D12: For PTRM & RFM templates we must provide a choice in case they change their form of control - otherwise it is drawn from the business specific lookup table above.
C13: dms_SourceList | D13: dms_FormControl_Choices
C14: -- select -- | D14: Revenue cap
C15: After appeal | D15: Revenue yield
C16: Draft decision | D16: Weighted average price cap
C17: Final decision
C18: PTRM update 1
C19: PTRM update 2
C20: PTRM update 3
C21: PTRM update 4
C22: PTRM update 5
C23: PTRM update 6
C24: PTRM update 7
C25: Regulatory proposal
C26: Reporting
C27: Revised regulatory proposal
L30: This is used to create an image to insert on 6.3 STPIS sheet - not for dropdown lists.
B31: CA & RESET RINS DNSP | C31: dms_DNSP_020301_SubstationType | D31: dms_DNSP_020301_ProjectType | E31: dms_DNSP_020301_ProjectTrigger | F31: dms_DNSP_020302_ProjectType | G31: dms_DNSP_020302_ProjectTrigger | H31: dms_STPIS_Exclusion_List | I31: dms_Reason_Interruption | J31: dms_Reason_Interruption_Detailed | L31: Reason for interruption
C32: Subtransmission substation | D32: New substation establishment | E32: Demand growth | F32: New line on new route - single circuit | G32: Demand growth | H32: Weather | I32: Animal | J32: Animal impact | L32: Animal | M32: Animal impact
C33: Zone substation | D33: Substation upgrade - capacity | E33: Voltage issues | F33: New line on new route - dual circuit | G33: Voltage issues | H33: Equipment failure | I33: Asset failure | J33: Animal nesting/burrowing, etc and other | M33: Animal nesting/burrowing, etc and other
C34: Switching station | D34: Substation upgrade - voltage | E34: Reactive power issue | F34: New line on new route - other | G34: Reactive power issue | H34: Operational error | I34: Other | J34: Other | M34: Other
C35: Other | D35: Other | E35: Fault level issues | F35: Line rebuild over existing route - single circuit | G35: Fault level issues | H35: Vegetation | I35: Overloads | J35: LV | L35: Asset failure | M35: LV
E36: Safety | F36: Line rebuild over existing route - dual circuit | G36: Net market benefit | H36: Animals | I36: Planned | J36: Distribution substation | M36: Distribution substation
E37: Environment | F37: Reconductor - Single circuit | G37: Safety | H37: Third party impacts | I37: Network business | J37: HV | M37: HV
E38: Other | F38: Reconductor - Dual circuit | G38: Environment | H38: Transmission failure | I38: Third party | J38: Zone substation | M38: Zone substation
F39: Reconductor - Other | G39: Other | H39: Load shedding | I39: Unknown | J39: Subtransmission | M39: Subtransmission
F40: Line upgrade - raising/retensoring | H40: Inter-distributor connection failure | I40: Vegetation | J40: insert description of 'other' | L40: Other | M40: insert description of 'other'
F41: Line upgrade - voltage upgrade | H41: Other | I41: Weather | J41: Network error | L41: Overloads
F42: Line upgrade - capacity | I42: 2 - STPIS Exclusion (3.3)(a) | J42: Switching and protection error | L42: Planned
F43: String spare circuit | I43: 3 - STPIS Exclusion (3.3)(a) | J43: Fire | L43: Network business | M43: Network error
F44: Other | I44: 4 - STPIS Exclusion (3.3)(a) | J44: Other | M44: Switching and protection error
I45: 5 - STPIS Exclusion (3.3)(a) | J45: Dig-in | L45: Third party | M45: Fire
I46: 6 - STPIS Exclusion (3.3)(a) | J46: Unauthorised access | M46: Other
I47: 7 - STPIS Exclusion (3.3)(a) | J47: Vehicle impact | M47: Dig-in
J48: Unknown | M48: Unauthorised access
J49: Blow-in/Fall-in - NSP responsibility | M49: Vehicle impact
J50: Grow-in - NSP responsibility | L50: Unknown | M50: Unknown
J51: Blow-in/Fall-in - Other responsible party | L51: Vegetation | M51: Blow-in/Fall-in - NSP responsibility
J52: Grow-in - Other responsible party | M52: Grow-in - NSP responsibility
M53: Blow-in/Fall-in - Other responsible party
M54: Grow-in - Other responsible party
L55: Weather
L56: 2 - STPIS Exclusion (3.3)(a)
L57: 3 - STPIS Exclusion (3.3)(a)
L58: 4 - STPIS Exclusion (3.3)(a)
L59: 5 - STPIS Exclusion (3.3)(a)
L60: 6 - STPIS Exclusion (3.3)(a)
L61: 7 - STPIS Exclusion (3.3)(a)
B64: CA & RESET RINS TNSP | C64: dms_TNSP_0203_SubstationType | D64: dms_TNSP_020301_ProjectType | E64: dms_TNSP_020301_ProjectTrigger | F64: dms_TNSP_020302_ProjectType | G64: dms_TNSP_0203_ProjectTrigger
C65: Terminal station | D65: New substation establishment | E65: Demand growth | F65: New line on new route - single circuit | G65: Demand growth
C66: Switching station | D66: Capacity upgrade | E66: Voltage issues | F66: New line on new route - dual circuit | G66: Voltage issues
C67: Transmission substation | D67: Voltage upgrade | E67: Reactive power issue | F67: New line on new route - other | G67: Reactive power issue
C68: Other | D68: Other | E68: Fault level issues | F68: Line rebuild over existing route - single circuit | G68: Fault level issues
E69: Net market benefit | F69: Line rebuild over existing route - dual circuit | G69: Net market benefit
E70: Safety | F70: Reconductor - Single circuit | G70: Safety
E71: Environment | F71: Reconductor - Dual circuit | G71: Environment
E72: Other | F72: Reconductor - Other | G72: Other
F73: Line upgrade - raising/retensoring
F74: Line upgrade - voltage upgrade
F75: Line upgrade - capacity
F76: String spare circuit
F77: Other
B81: NAMED RANGES USED IN ETL PROCESS
B83: CA & RESET RINS DNSP ONLY | C83: dms_020303_01_UOM | D83: dms_020501_01_UOM | E83: dms_020501_02_UOM | F83: dms_020501_03_UOM | G83: dms_020501_04_UOM | H83: dms_020701_01_UOM | I83: dms_020701_02_UOM | J83: dms_020701_01_Rows | K83: dms_040102_01_UOM | L83: dms_040102_04_UOM
C84: Circuit line length in km | D84: 0's | E84: 0's | F84: 0's | G84: 0's | H84: km | I84: km | J84: Route line length within zone | K84: 0's | L84: days
C85: Circuit line length in km | D85: 0's | E85: 0's | F85: 0's | G85: 0's | H85: 0's | I85: 0's | J85: Number of maintenance spans | K85: 0's | L85: 0's
C86: Circuit line length in km | D86: MVA added | E86: MVA added | F86: MVA added | G86: MVA added | H86: km | I86: km | J86: Total length of maintenance spans | K86: 0's | L86: $0s
C87: Circuit line length in km | D87: 0's | E87: 0's | F87: 0's | G87: 0's | H87: km | I87: km | J87: Length of vegetation corridors | K87: $0s | L87: 0's
C88: Number | D88: total spend $0s | E88: total spend $0s | F88: total spend $0s | G88: total spend $0s | H88: 0's | I88: 0's | J88: Average number of trees per maintenance span
C89: Number | D89: net circuit km added | E89: net circuit km added | F89: net circuit km added | G89: net circuit km added | H89: years | I89: years | J89: Average frequency of cutting cycle
C90: Number | D90: total spend $0s | E90: total spend $0s | F90: total spend $0s | G90: total spend $0s
D91: net circuit km added | E91: net circuit km added | F91: net circuit km added | G91: net circuit km added
D92: total spend $0s | E92: total spend $0s | F92: total spend $0s | G92: total spend $0s
D93: 0's | F93: $0s
D94: 0's
D95: 0's
D96: $0s
B99: CA & RESET RINS TNSP ONLY | C99: dms_020701_01_UOM
C100: km
C101: 0's
C102: km
C103: 0's
C104: km
C105: metres
C106: years
B109: CA & RESET RINS DNSP & TNSP | C109: dms_020603_01_UOM
C110: 0's
C111: 0's
C112: 0's
C113: 0's
C114: (per cent)
B117: EB & RESET RINS DNSP ONLY | C117: dms_030601_01_UOM | D117: dms_030601_02_UOM | E117: dms_030701_01_UOM | F117: dms_030702_01_UOM | G117: dms_030703_01_UOM
C118: minutes/customer | D118: minutes/customer | E118: Customer / km | F118: % | G118: km
C119: minutes/customer | D119: minutes/customer | E119: MWh/customer | F119: Number of spans
C120: interruptions/customer | D120: interruptions/customer | E120: kVA / customer | F120: Number of spans
C121: interruptions/customer | D121: interruptions/customer | F121: Number of spans
F122: Number of spans
F123: Years
F124: Years
F125: Trees
F126: Trees
F127: Defects
F128: Defects
F129: Spans
F130: km
F131: Spans
C133: WHEN INSERTING COVER SHEET INTO A TNSP FILE - APPLY THESE NAMED RANGES
B134: EB & RESET RINS TNSP ONLY | C134: dms_030601_01_UOM | E134: dms_030701_01_UOM | F134: dms_030702_01_UOM
C135: % | E135: Number of spans | F135: km
C136: number | E136: Years | F136: %
C137: number | E137: Trees | F137: km
C138: % | E138: Defects | F138: number
C139: number | E139: Number of spans
C140: number | E140: km
C141: % | E141: km
C142: number | E142: Number of spans
C143: number
C144: %
C145: number
C146: %
C147: number
C148: %
C149: number
B151: EB & RESET RINS DNSP & TNSP | C151: dms_EB_RAB_PIT
C152: Beginning of year
C153: End of year
C154: End of year
C155: End of year
C156: End of year
C157: End of year
B159: ARR DNSP ONLY | C159: dms_030605_UOM | D159: dms_03060703_UOM | E159: Spare | F159: Spare
C160: number | D160: number
C161: number | D161: number
C162: number | D162: number
C163: number | D163: number
C164: number | D164: (per cent)
C165: number
C166: number
C167: number
C168: number
C169: number
C170: number
C171: number
C172: (per cent)
C173: (per cent)
B175: RFM | C175: dms_Beg | D175: dms_Mid | E175: dms_End
C176: Beginning of year | D176: Mid year | E176: End of Year
B178: PTRM | C178: dms_PTRM_RAB_PIT | D178: dms_PTRM_TAB_PIT | E178: DMS_Xfactor
C179: Beginning of year | D179: Beginning of year | E179: x factors
C180: End of year | D180: End of year
C181: End of year | D181: End of year
C182: End of year | D182: End of year
C183: End of year
B186: STPIS & MIC NAMED RANGES
B188: These "row descriptions" are the column headings in the various templates but become row descriptions in the ETL process
B190: Table 6.3 sustained interruptions - row descriptions | C190: dms_060301_CustNo_Affected_Row | D190: dms_060301_Avg_Duration_Sustained_Int_Row | E190: dms_060301_Effect_unplanned_SAIDI_Row | F190: dms_060301_Effect_unplanned_SAIFI_Row
C191: Number of customers affected by the interruption | D191: Average duration of sustained customer interruption | E191: Effect on unplanned SAIDI | F191: Effect on unplanned SAIFI
B194: Table 6.1 telephone answering - row descriptions and start date | C194: dms_060101_Rows | D194: dms_060102_Rows | E194: dms_060101_StartDateTxt
C195: Total number of calls (after removing excluded events) | D195: Number of calls answered within 30 seconds (after excluding excluded events) | E195: =dms_060701_StartDateTxt -> 1-Jan-2014
B198: Table 6.8.1 - row descriptions | C198: dms_060801_01_Rows | D198: dms_060801_02_Rows | E198: dms_060801_03_Rows | F198: dms_060801_04_Rows
C199: Number of interruptions | D199: Duration of interruptions | E199: Total unplanned minutes off supply | F199: Effect on unplanned MAIFI
B202: Table 7.9.4 - market impact component - row descriptions | C202: dms_070904_01_Rows | D202: without exclusions | E202: with exclusions
B205: These headings (Lists) are determined from the INDEX/MATCH function on the NSP selected on the Business & other details sheet
B207: Table 6.7.1 - daily performance data - unplanned - MAIFI -- row descriptions and header named range values | C207: dms_060701_Feeder_Header_Lvl4 | D207: =INDEX(dms_FeederName_1,MATCH(dms_TradingName,dms_TradingName_List)) -> CBD | E207: =INDEX(dms_FeederName_1,MATCH(dms_TradingName,dms_TradingName_List)) -> CBD | F207: =INDEX(dms_FeederName_2,MATCH(dms_TradingName,dms_TradingName_List)) -> Urban | G207: =INDEX(dms_FeederName_2,MATCH(dms_TradingName,dms_TradingName_List)) -> Urban | H207: =INDEX(dms_FeederName_3,MATCH(dms_TradingName,dms_TradingName_List)) -> Short rural | I207: =INDEX(dms_FeederName_3,MATCH(dms_TradingName,dms_TradingName_List)) -> Short rural | J207: =INDEX(dms_FeederName_4,MATCH(dms_TradingName,dms_TradingName_List)) -> Long rural | K207: =INDEX(dms_FeederName_4,MATCH(dms_TradingName,dms_TradingName_List)) -> Long rural | L207: =IF((INDEX(dms_FeederName_5,MATCH(dms_TradingName,dms_TradingName_List))=0),"Network",(INDEX(dms_FeederName_5,MATCH(dms_TradingName,dms_TradingName_List)))) -> Network | M207: =IF((INDEX(dms_FeederName_5,MATCH(dms_TradingName,dms_TradingName_List))=0),"Network",(INDEX(dms_FeederName_5,MATCH(dms_TradingName,dms_TradingName_List)))) -> Network | N207: Network | O207: Network
C209: dms_060701_Rows | D209: All events | E209: After removing excluded events | F209: All events | G209: After removing excluded events | H209: All events | I209: After removing excluded events | J209: All events | K209: After removing excluded events | L209: All events | M209: After removing excluded events | N209: All events | O209: After removing excluded events
D210: the number of column headings changes from 10 to 12 depending on the number of feeder categories for the NSP
C212: dms_0603_FeederList | D212: =INDEX(dms_FeederName_1,MATCH(dms_TradingName,dms_TradingName_List)) -> CBD | E212: =INDEX(dms_FeederName_2,MATCH(dms_TradingName,dms_TradingName_List)) -> Urban | F212: =INDEX(dms_FeederName_3,MATCH(dms_TradingName,dms_TradingName_List)) -> Short rural | G212: =INDEX(dms_FeederName_4,MATCH(dms_TradingName,dms_TradingName_List)) -> Long rural
B215: Use these to add to specific worksheets in existing files | C215: Use these to add to specific worksheets in existing files
B218: ARRs 6.7 STPIS daily performance | C218: dms_060101_Values | D218: dms_060102_Values | E218: dms_060701_Values
C219: dms_LeapYear
B222: ARR's 6.8 STPIS exclusions | C222: dms_060801_Event_Date | D222: dms_060801_OutageID | E222: dms_060801_FeederID | F222: dms_060801_FeederClass | G222: dms_060801_CauseID | H222: dms_060801_01_Values | I222: dms_060801_02_Values | J222: dms_060801_03_Values | K222: dms_060801_Excl_Cat | L222: dms_060801_04_Values
C223: dms_060801_StartCell
B226: CA 6.3 sustained interruptions | C226: dms_060301_Event_Date | D226: dms_060301_Event_Time | E226: dms_060301_AssetID | F226: dms_060301_FeederClass | G226: dms_060301_Reason | H226: dms_060301_DetailedReason | I226: dms_060301_CustNo_Affected_Values | J226: dms_060301_Avg_Duration_Sustained_Int_Values | K226: dms_060301_Effect_unplanned_SAIDI_Values | L226: dms_060301_Effect_unplanned_SAIFI_Values | M226: dms_060301_MED

Sheet AER lookups (hidden)
B1: AER LOOKUP TABLES
B3: Data in these columns used for data validation and database purposes.
B4: Date last modified: | C4: 2017-01-16 | D4: added (Albury and Victora) for AGN
C5: 2016-10-17 | D5: updated TransGrid's correct legal name, corrected TasNetworks (T) to June financial year
C6: 2017-02-01 | D6: inserted Power and Water, added NRs (dms_FeederCat_1 and dms_FeederCat_2)
C7: 2017-03-03 | D7: inserted AEMO as a business | AB7: FOR ELECTRICITY BUSINESSES ONLY
C8: 2018-03-28 | D8: major changes to accommodate STPIS
C9: Template Version | D9: 5 | AB9: Feeder Types | AF9: TasNetworks (D) | AG9: MAIFI flag | AH9: Feeder Names
AB11: CBD | AC11: Urban | AD11: Short rural | AE11: long rural | AF11: EXTRA
B12: dms_TradingName_List | C12: dms_TradingNameFull_List | D12: dms_ABN_List | E12: dms_JurisdictionList | F12: dms_Sector_List | G12: dms_Segment_List | H12: dms_FormControl_List | I12: dms_RPT_List | J12: dms_RPTMonth_List | K12: dms_CRCPlength_List | L12: dms_FRCPlength_List | M12: dms_PRCPlength_List | N12: dms_663_List | O12: dms_DeterminationRef_List | P12: dms_Addr1_List | Q12: dms_Addr2_List | R12: dms_Suburb_List | S12: dms_State_List | T12: dms_PostCode_List | U12: dms_PAddr1_List | V12: dms_PAddr2_List | W12: dms_PSuburb_List | X12: dms_PState_List | Y12: dms_PPostCode_List | Z12: dms_ContactName1_List | AA12: dms_ContactPh1_List | AB12: dms_ContactEmail_List | AC12: dms_CBD_flag | AD12: dms_Urban_flag | AE12: dms_ShortRural_flag | AF12: dms_LongRural_flag | AG12: dms_FeederType_5_flag | AH12: dms_MAIFI_flag_List | AI12: dms_FeederName_1 | AJ12: dms_FeederName_2 | AK12: dms_FeederName_3 | AL12: dms_FeederName_4 | AM12: dms_FeederName_5 | AN12: dms_Public_Lighting_List | AO12: Column1
B13: AusNet (D) | C13: AusNet Electricity Services Pty Ltd | D13: 91064651118 | E13: Vic | F13: Electricity | G13: Distribution | H13: Revenue cap | I13: Calendar | J13: December | K13: 5 | L13: 5 | M13: 5 | N13: 2 | O13: 2016-20 Distribution Determination | P13: Level 32 | Q13: 2 Southbank Boulevard | R13: SOUTHBANK | S13: Vic | T13: 3006 | U13: Locked Bag 14051 | W13: MELBOURNE CITY MAIL CENTRE | X13: Vic | Y13: 8001 | Z13: Thomas Hall | AB13: thomas. hall@ausnetservices.com.au | AC13: NO | AD13: YES | AE13: YES | AF13: YES | AG13: NO | AH13: YES | AI13: CBD | AJ13: Urban | AK13: Short rural | AL13: Long rural | AN13: YES | AO13: AusNet (D)
B14: Australian Distribution Co. (Vic) | C14: Australian Distribution Co. (Victoria) | D14: 11222333444 | E14: Vic | F14: Electricity | G14: Distribution | H14: Revenue cap | I14: Calendar | J14: December | K14: 5 | L14: 5 | M14: 5 | N14: 2 | O14: distribution determination | P14: 123 Straight Street | R14: MELBOURNE | S14: Vic | T14: 3000 | U14: PO Box 123 | W14: MELBOURNE | X14: Vic | Y14: 3000 | Z14: Bob Smith | AA14: 02 1234 5678 | AB14: bob@auselec.net.au | AC14: NO | AD14: NO | AE14: NO | AF14: NO | AG14: NO | AH14: YES | AI14: CBD | AJ14: Urban | AK14: Short rural | AL14: Long rural | AN14: YES | AO14: Australian Distribution Co. (Vic)
B15: CitiPower | C15: CitiPower | D15: 76064651056 | E15: Vic | F15: Electricity | G15: Distribution | H15: Revenue cap | I15: Calendar | J15: December | K15: 5 | L15: 5 | M15: 5 | N15: 2 | O15: 2016-20 Distribution Determination | P15: 40 Market Street | R15: MELBOURNE | S15: Vic | T15: 3000 | U15: Locked Bag 14090 | W15: MELBOURNE | X15: Vic | Y15: 8001 | Z15: Hannah Williams | AA15: 03 9683 4088 | AB15: hwilliams@powercor.com.au | AC15: YES | AD15: YES | AE15: NO | AF15: NO | AG15: NO | AH15: YES | AI15: CBD | AJ15: Urban | AK15: Short rural | AL15: Long rural | AN15: YES | AO15: CitiPower
B16: Jemena Electricity | C16: Jemena Electricity | D16: 82064651083 | E16: Vic | F16: Electricity | G16: Distribution | H16: Revenue cap | I16: Calendar | J16: December | K16: 5 | L16: 5 | M16: 5 | N16: 2 | O16: 2016-20 Distribution Determination | P16: Level 16 | Q16: 567 Collins Street | R16: MELBOURNE | S16: Vic | T16: 3000 | U16: PO Box 16182 | W16: MELBOURNE | X16: Vic | Y16: 8001 | Z16: Matthew Serpell | AA16: 03 9173 8231 | AB16: matthew.serpell@jemena.com.au | AC16: NO | AD16: YES | AE16: YES | AF16: NO | AG16: NO | AH16: YES | AI16: CBD | AJ16: Urban | AK16: Short rural | AL16: Long rural | AN16: YES | AO16: Jemena Electricity
B17: Powercor Australia | C17: Powercor Australia | D17: 89064651109 | E17: Vic | F17: Electricity | G17: Distribution | H17: Revenue cap | I17: Calendar | J17: December | K17: 5 | L17: 5 | M17: 5 | N17: 2 | O17: 2016-20 Distribution Determination | P17: 40 Market Street | R17: MELBOURNE | S17: Vic | T17: 3000 | U17: Locked bag 14090 | W17: MELBOURNE | X17: Vic | Y17: 8001 | Z17: Hannah Williams | AA17: 03 9683 4088 | AB17: hwilliams@powercor.com.au | AC17: NO | AD17: NO | AE17: YES | AF17: YES | AG17: NO | AH17: YES | AI17: CBD | AJ17: Urban | AK17: Short rural | AL17: Long rural | AN17: YES | AO17: Powercor Australia
B18: United Energy | C18: United Energy | D18: 70064651029 | E18: Vic | F18: Electricity | G18: Distribution | H18: Revenue cap | I18: Calendar | J18: December | K18: 5 | L18: 5 | M18: 5 | N18: 2 | O18: 2016-20 Distribution Determination | P18: 43-45 Centreway | R18: MOUNT WAVERLEY | S18: Vic | T18: 3149 | U18: PO Box 449 | W18: MOUNT WAVERLEY | X18: Vic | Y18: 3170 | Z18: Mathew Abraham | AA18: 03 8846 9758 | AB18: mathew.abraham@ue.com.au | AC18: NO | AD18: NO | AE18: YES | AF18: NO | AG18: NO | AH18: YES | AI18: CBD | AJ18: Urban | AK18: Short rural | AL18: Long rural | AN18: YES | AO18: United Energy
B23: The Reg Year Ending (dms_RYE) must be set to the last year of the regulatory period. For forecast data is is usually (FRCP_y5) for actual it is a single year (CRY). For historical actual data the RYE will need to be set manually in the business details sheet by setting the dms_Multiyear_flag to 1 and putting the correct value in 'dms_Specified_FinalYear. See cells C67:C68
B24: dms_Model_List | C24: dms_Model_Name_Format1 | D24: dms_Worksheet_List | E24: dms_Model_Span_List
B25: ARR | C25: Annual Reporting | D25: =IF(dms_MultiYear_ResponseFlag="yes","NEW HISTORICAL ANNUAL REPORTING","ANNUAL REPORTING") -> ANNUAL REPORTING | E25: 1
B26: CA | C26: Category Analysis | D26: =IF(dms_MultiYear_ResponseFlag="yes","NEW HISTORICAL CATEGORY ANALYSIS","CATEGORY ANALYSIS") -> CATEGORY ANALYSIS | E26: 1
B27: CESS | C27: Capitlal Expenditure | D27: CAPITLAL EXPENDITURE SHARING SCHEMING | E27: 5
B28: CPI | C28: CPI | D28: CPI | E28: 5
B29: EB | C29: Economic Benchmarking | D29: =IF(dms_MultiYear_ResponseFlag="yes","NEW HISTORICAL ECONOMIC BENCHMARKING","ECONOMIC BENCHMARKING") -> ECONOMIC BENCHMARKING | E29: 1
B30: Pricing | C30: Pricing Proposal | D30: PRICING PROPOSAL | E30: 5
B31: PTRM | C31: Post Tax Revenue Model | D31: POST TAX REVENUE MODEL | E31: 5
B32: Reset | C32: Regulatory Reporting (Reset) | D32: REGULATORY REPORTING STATEMENT | E32: 5
B33: RFM | C33: Roll Forward Model | D33: ROLL FORWARD MODEL | E33: 5
B34: WACC | C34: Weighted Average Cost of Capital | D34: WEIGHTED AVERAGE COST OF CAPITAL | E34: 1
B38: Financial | C38: Calendar | E38: PREVIOUS | G38: CURRENT | I38: FORTHCOMING
B39: 1987-88 | C39: 1988 | D39: PRCP_y1 | E39: =INDEX(INDIRECT(dms_RPT),dms_PRCP_start_row) -> 2011 | F39: CRCP_y1 | G39: =INDEX(INDIRECT(dms_RPT),dms_CRCP_start_row) -> 2016 | H39: =FRCP_y1 -> 2021 | I39: =INDEX(INDIRECT(dms_RPT),dms_FRCP_start_row) -> 2021
B40: 1988-89 | C40: 1989 | D40: PRCP_y2 | E40: =INDEX(INDIRECT(dms_RPT),dms_PRCP_start_row+1) -> 2012 | F40: CRCP_y2 | G40: =INDEX(INDIRECT(dms_RPT),dms_CRCP_start_row+1) -> 2017 | H40: FRCP_y2 | I40: =INDEX(INDIRECT(dms_RPT),dms_FRCP_start_row+1) -> 2022
B41: 1989-90 | C41: 1990 | D41: PRCP_y3 | E41: =INDEX(INDIRECT(dms_RPT),dms_PRCP_start_row+2) -> 2013 | F41: CRCP_y3 | G41: =INDEX(INDIRECT(dms_RPT),dms_CRCP_start_row+2) -> 2018 | H41: FRCP_y3 | I41: =INDEX(INDIRECT(dms_RPT),dms_FRCP_start_row+2) -> 2023
B42: 1990-91 | C42: 1991 | D42: PRCP_y4 | E42: =INDEX(INDIRECT(dms_RPT),dms_PRCP_start_row+3) -> 2014 | F42: CRCP_y4 | G42: =INDEX(INDIRECT(dms_RPT),dms_CRCP_start_row+3) -> 2019 | H42: FRCP_y4 | I42: =INDEX(INDIRECT(dms_RPT),dms_FRCP_start_row+3) -> 2024
B43: 1991-92 | C43: 1992 | D43: PRCP_y5 | E43: =INDEX(INDIRECT(dms_RPT),dms_PRCP_start_row+4) -> 2015 | F43: CRCP_y5 | G43: =INDEX(INDIRECT(dms_RPT),dms_CRCP_start_row+4) -> 2020 | H43: FRCP_y5 | I43: =INDEX(INDIRECT(dms_RPT),dms_FRCP_start_row+4) -> 2025
B44: 1992-93 | C44: 1993 | D44: PRCP_y6 | E44: =INDEX(INDIRECT(dms_RPT),dms_PRCP_start_row+5) -> 2016 | F44: CRCP_y6 | G44: =INDEX(INDIRECT(dms_RPT),dms_CRCP_start_row+5) -> 2021 | H44: FRCP_y6 | I44: =INDEX(INDIRECT(dms_RPT),dms_FRCP_start_row+5) -> 2026
B45: 1993-94 | C45: 1994 | D45: PRCP_y7 | E45: =INDEX(INDIRECT(dms_RPT),dms_PRCP_start_row+6) -> 2017 | F45: CRCP_y7 | G45: =INDEX(INDIRECT(dms_RPT),dms_CRCP_start_row+6) -> 2022 | H45: FRCP_y7 | I45: =INDEX(INDIRECT(dms_RPT),dms_FRCP_start_row+6) -> 2027
B46: 1994-95 | C46: 1995 | D46: PRCP_y8 | E46: =INDEX(INDIRECT(dms_RPT),dms_PRCP_start_row+7) -> 2018 | F46: CRCP_y8 | G46: =INDEX(INDIRECT(dms_RPT),dms_CRCP_start_row+7) -> 2023 | H46: FRCP_y8 | I46: =INDEX(INDIRECT(dms_RPT),dms_FRCP_start_row+7) -> 2028
B47: 1995-96 | C47: 1996 | D47: PRCP_y9 | E47: =INDEX(INDIRECT(dms_RPT),dms_PRCP_start_row+8) -> 2019 | F47: CRCP_y9 | G47: =INDEX(INDIRECT(dms_RPT),dms_CRCP_start_row+8) -> 2024 | H47: FRCP_y9 | I47: =INDEX(INDIRECT(dms_RPT),dms_FRCP_start_row+8) -> 2029
B48: 1996-97 | C48: 1997 | D48: PRCP_y10 | E48: =INDEX(INDIRECT(dms_RPT),dms_PRCP_start_row+9) -> 2020 | F48: CRCP_y10 | G48: =INDEX(INDIRECT(dms_RPT),dms_CRCP_start_row+9) -> 2025 | H48: FRCP_y10 | I48: =INDEX(INDIRECT(dms_RPT),dms_FRCP_start_row+9) -> 2030
B49: 1997-98 | C49: 1998 | D49: PRCP_y11 | E49: =INDEX(INDIRECT(dms_RPT),dms_PRCP_start_row+10) -> 2021 | F49: CRCP_y11 | G49: =INDEX(INDIRECT(dms_RPT),dms_CRCP_start_row+10) -> 2026 | H49: FRCP_y11 | I49: =INDEX(INDIRECT(dms_RPT),dms_FRCP_start_row+10) -> 2031
B50: 1998-99 | C50: 1999 | D50: PRCP_y12 | E50: =INDEX(INDIRECT(dms_RPT),dms_PRCP_start_row+11) -> 2022 | F50: CRCP_y12 | G50: =INDEX(INDIRECT(dms_RPT),dms_CRCP_start_row+11) -> 2027 | H50: FRCP_y12 | I50: =INDEX(INDIRECT(dms_RPT),dms_FRCP_start_row+11) -> 2032
B51: 1999-00 | C51: 2000 | D51: PRCP_y13 | E51: =INDEX(INDIRECT(dms_RPT),dms_PRCP_start_row+12) -> 2023 | F51: CRCP_y13 | G51: =INDEX(INDIRECT(dms_RPT),dms_CRCP_start_row+12) -> 2028 | H51: FRCP_y13 | I51: =INDEX(INDIRECT(dms_RPT),dms_FRCP_start_row+12) -> 2033
B52: 2000-01 | C52: 2001 | D52: PRCP_y14 | E52: =INDEX(INDIRECT(dms_RPT),dms_PRCP_start_row+13) -> 2024 | F52: CRCP_y14 | G52: =INDEX(INDIRECT(dms_RPT),dms_CRCP_start_row+13) -> 2029 | H52: FRCP_y14 | I52: =INDEX(INDIRECT(dms_RPT),dms_FRCP_start_row+13) -> 2034
B53: 2001-02 | C53: 2002 | D53: PRCP_y15 | E53: =INDEX(INDIRECT(dms_RPT),dms_PRCP_start_row+14) -> 2025 | F53: CRCP_y15 | G53: =INDEX(INDIRECT(dms_RPT),dms_CRCP_start_row+14) -> 2030 | H53: FRCP_y15 | I53: =INDEX(INDIRECT(dms_RPT),dms_FRCP_start_row+14) -> 2035
B54: 2002-03 | C54: 2003 | D54: PRCP_y16 | E54: =INDEX(INDIRECT(dms_RPT),dms_PRCP_start_row+15) -> 2026 | F54: CRCP_y16 | G54: =INDEX(INDIRECT(dms_RPT),dms_CRCP_start_row+15) -> 2031 | H54: FRCP_y16 | I54: =INDEX(INDIRECT(dms_RPT),dms_FRCP_start_row+15) -> 2036
B55: 2003-04 | C55: 2004
B56: 2004-05 | C56: 2005
B57: 2005-06 | C57: 2006 | E57: CRY - FRY
B58: 2006-07 | C58: 2007 | D58: dms_y1 | E58: =IFERROR(INDEX(INDIRECT(dms_RPT),dms_CRY_start_row),0) -> 2019
B59: 2007-08 | C59: 2008 | D59: dms_y2 | E59: =IFERROR(INDEX(INDIRECT(dms_RPT),dms_CRY_start_row+1),0) -> 2020
B60: 2008-09 | C60: 2009 | D60: dms_y3 | E60: =IFERROR(INDEX(INDIRECT(dms_RPT),dms_CRY_start_row+2),0) -> 2021
B61: 2009-10 | C61: 2010 | D61: dms_y4 | E61: =IFERROR(INDEX(INDIRECT(dms_RPT),dms_CRY_start_row+3),0) -> 2022
B62: 2010-11 | C62: 2011 | D62: dms_y5 | E62: =IFERROR(INDEX(INDIRECT(dms_RPT),dms_CRY_start_row+4),0) -> 2023
B63: 2011-12 | C63: 2012 | D63: dms_y6 | E63: =IFERROR(INDEX(INDIRECT(dms_RPT),dms_CRY_start_row+5),0) -> 2024
B64: 2012-13 | C64: 2013 | D64: dms_y7 | E64: =IFERROR(INDEX(INDIRECT(dms_RPT),dms_CRY_start_row+6),0) -> 2025
B65: 2013-14 | C65: 2014 | D65: dms_y8 | E65: =IFERROR(INDEX(INDIRECT(dms_RPT),dms_CRY_start_row+7),0) -> 2026
B66: 2014-15 | C66: 2015 | D66: dms_y9 | E66: =IFERROR(INDEX(INDIRECT(dms_RPT),dms_CRY_start_row+8),0) -> 2027
B67: 2015-16 | C67: 2016 | D67: dms_y10 | E67: =IFERROR(INDEX(INDIRECT(dms_RPT),dms_CRY_start_row+9),0) -> 2028
B68: 2016-17 | C68: 2017 | D68: dms_y11 | E68: =IFERROR(INDEX(INDIRECT(dms_RPT),dms_CRY_start_row+10),0) -> 2029
B69: 2017-18 | C69: 2018 | D69: dms_y12 | E69: =IFERROR(INDEX(INDIRECT(dms_RPT),dms_CRY_start_row+11),0) -> 2030
B70: 2018-19 | C70: 2019 | D70: dms_y13 | E70: =IFERROR(INDEX(INDIRECT(dms_RPT),dms_CRY_start_row+12),0) -> 2031
B71: 2019-20 | C71: 2020 | D71: dms_y14 | E71: =IFERROR(INDEX(INDIRECT(dms_RPT),dms_CRY_start_row+13),0) -> 2032
B72: 2020-21 | C72: 2021 | D72: dms_y15 | E72: =IFERROR(INDEX(INDIRECT(dms_RPT),dms_CRY_start_row+14),0) -> 2033
B73: 2021-22 | C73: 2022 | D73: dms_y16 | E73: =IFERROR(INDEX(INDIRECT(dms_RPT),dms_CRY_start_row+15),0) -> 2034
B74: 2022-23 | C74: 2023
B75: 2023-24 | C75: 2024
B76: 2024-25 | C76: 2025
B77: 2025-26 | C77: 2026
B78: 2026-27 | C78: 2027
B79: 2027-28 | C79: 2028
B80: 2028-29 | C80: 2029
B81: 2029-30 | C81: 2030
B82: 2030-31 | C82: 2031
B83: 2031-32 | C83: 2032
B84: 2032-33 | C84: 2033
B85: 2033-34 | C85: 2034
B86: 2034-35 | C86: 2035
B87: 2035-36 | C87: 2036
B88: 2036-37 | C88: 2037

Sheet AER ETL (hidden)
B1: AER ETL INFORMATION
B3: USES NAMED RANGES FLAG | C3: yes | D3: dms_Defined_Names_Used
B5: IF THIS IS AN ABC RIN - make sure the the named range CRY is applied and the named range dms_dollar_nom_UOM is applied
B6: IF THIS IS A RESET RIN - make sure the named ranges CRY and dms_dollar_nom_UOM are NOT present in the workbook
B7: FOR ABC RINS THAT SPAN MULTIPLE YEARS - make sure MultiYear Flag is set and final year entered as required
A9: Selected here | B9: Model / RIN | C9: Reset | D9: dms_Model
A10: Read from Business & other details | B10: Source | C10: =dms_Selected_Source -> Regulatory proposal | D10: dms_Source
B11: Data quality | C11: =dms_Selected_Quality -> Consolidated | D11: dms_DQ_1
B12: Data status | C12: =dms_Selected_Status -> Public | D12: dms_DQ_2
B13: Amendment reason | C13: =dms_Amendment_Text -> . | F13: dms_AmendmentReason
B14: Submission date | C14: =dms_Typed_Submission_Date -> 2020-01-31 | D14: dms_SubmissionDate
A16: Redundant | B16: EBSS - First application of scheme in forthcoming period? | C16: No | D16: dms_EBSS_status
A17: Pre-populated from lookup table | B17: Data ingestion data quality | C17: Consolidated | D17: dms_DataQuality | E17: =IF(dms_DQ_2="Confidential","Consolidated","Public")
B18: Sector | C18: =INDEX(dms_Sector_List,MATCH(dms_TradingName,dms_TradingName_List)) -> Electricity | D18: dms_Sector | E18: =INDEX(dms_Sector_List,MATCH(dms_TradingName,dms_TradingName_List))
B19: Segment | C19: =INDEX(dms_Segment_List,MATCH(dms_TradingName,dms_TradingName_List)) -> Distribution | D19: dms_Segment | E19: =INDEX(dms_Segment_List,MATCH(dms_TradingName,dms_TradingName_List))
B20: Regulatory Year Ending | C20: =dms_RYE_result -> 2025 | D20: dms_RYE | E20: =IF(dms_MultiYear_Flag=1,LEFT(dms_Specified_FinalYear,2)&RIGHT(dms_Specified_FinalYear,2),INDEX(dms_RYE_Formula_Result,MATCH(dms_Model,dms_Model_List)))
B21: Reporting Period Type | C21: =INDEX(dms_RPT_List,MATCH(dms_TradingName,dms_TradingName_List)) -> Calendar | D21: dms_RPT | E21: =INDEX(dms_RPT_List,MATCH(dms_TradingName,dms_TradingName_List))
B22: EB/CA Unit of Measure for Monetary Values | C22: $0s | D22: dms_dollar_nom_UOM | E22: If the cover sheet is attached to an ABC RIN apply the NAMED RANGE to the cell
B23: Security Classification | C23: Public | D23: dms_Classification | E23: Always Public
B24: Jurisdiction | C24: =INDEX(dms_JurisdictionList,MATCH(dms_TradingName,dms_TradingName_List)) -> Vic | D24: dms_Jurisdiction | E24: =INDEX(dms_JurisdictionList,MATCH(dms_TradingName,dms_TradingName_List))
A25: Relevant for PTRM, RFMs and Reset RINS | B25: $ REAL REFERENCES
B26: Does the named range CRY exist in this file? | C26: =IFERROR(CRY,"NO") -> 2019
B27: CRY-1 (last full calendar year before CRY) | C27: =IFERROR(IF(dms_RPT="calendar",CRY-1,LEFT(CRY,4)),"CRY not present") -> 2018 | D27: dms_Cal_Year_B4_CRY | E27: '=IF(dms_RPT="financial",VALUE(LEFT(dms_SingleYear_FinalYear_Result,4)),VALUE(LEFT(dms_SingleYear_FinalYear_Result,4)-1))
B28: Dollar $ real month | C28: =INDEX(dms_RPTMonth_List,MATCH(dms_TradingName,dms_TradingName_List)) -> December | D28: dms_RPTMonth | E28: =INDEX(dms_RPTMonth_List,MATCH(dms_TradingName,dms_TradingName_List))
B29: Dollar $ real (the last month before the FRCP_y1) | C29: =IF(dms_SingleYearModel="yes",CONCATENATE(dms_RPTMonth)&" "&VALUE((LEFT(CRY,2))&RIGHT(CRY,2)),CONCATENATE(dms_RPTMonth)&" "&dms_DollarReal_year) -> December 2020 | D29: dms_DollarReal | E29: =IF(SUM(dms_SingleYear_Model)>0,CONCATENATE(dms_RPTMonth)&" "&VALUE((LEFT(CRY,2))&RIGHT(CRY,2)),CONCATENATE(dms_RPTMonth)&" "&VALUE((LEFT(dms_RYE,2)&RIGHT(dms_RYE,2))))
B30: Dollar $ real previous year (PRCP_y5) | C30: =IF(dms_SingleYearModel="yes",CONCATENATE(dms_RPTMonth)&" "&VALUE((LEFT(CRY,2))&RIGHT(CRY,2)),CONCATENATE(dms_RPTMonth)&" "&dms_Previous_DollarReal_year) -> December 2015 | D30: dms_DollarReal_Prev | E30: =IF(SUM(dms_SingleYear_Model)>0,CONCATENATE(dms_RPTMonth)&" "&VALUE(((LEFT(CRY,2))&RIGHT(CRY,2))-1),CONCATENATE(dms_RPTMonth)&" "&VALUE(((LEFT(dms_CRCP_FirstYear_Result,2)&RIGHT(dms_CRCP_FirstYear_Result,2))))-1)
B31: PTRM/ RFMs
B32: Form of control | C32: =INDEX(dms_FormControl_List,MATCH(dms_TradingName,dms_TradingName_List)) -> Revenue cap | D32: dms_FormControl | E32: =INDEX(dms_FormControl_List,MATCH(dms_TradingName,dms_TradingName_List))
A33: All potential values for Regulatory Years or RYEs as calculated | B33: This block works out the various RYE's for ALL RIN types and MODELS
B34: dms_start_year | C34: =FRCP_y1 -> 2021 | D34: FRCP_y1 from cover sheet
B35: dms_CRY_start_year | C35: =IFERROR(CRY,0) -> 2019
B36: dms_CRY_start_row | C36: =MATCH(CRY,INDIRECT(dms_RPT),0) -> 32
B37: dms_FRCP_start_row | C37: =MATCH(dms_start_year,INDIRECT(dms_RPT),0) -> 34 | D37: Uses FRCP_y1 as a start reference
B38: dms_CRCP_start_row | C38: =dms_FRCP_start_row-dms_CRCPlength_Num -> 29 | D38: Uses the value in dms_CRCPlength_Num
B39: dms_PRCP_start_row | C39: =dms_FRCP_start_row-dms_CRCPlength_Num-dms_PRCPlength_Num -> 24 | D39: Uses the value in dms_CRCPlength_Num and dms_PRCPlength_Num
B40: dms_RYE_start_row | C40: =dms_FRCP_start_row+(dms_FRCPlength_Num-1) -> 38 | D40: Uses the value in dms_FRCPlength_Num-1
B41: FRCP_start_year | C41: =INDEX(INDIRECT(dms_RPT),dms_FRCP_start_row) -> 2021 | D41: Converts the FRCP start row to display the year
B42: CRCP_start_year | C42: =INDEX(INDIRECT(dms_RPT),dms_CRCP_start_row) -> 2016 | D42: Converts the CRCP start row to display the year
B43: PRCP_start_year | C43: =INDEX(INDIRECT(dms_RPT),dms_PRCP_start_row) -> 2011 | D43: Converts the PRCP start row to display the year
B44: FRCP_final_year | C44: =INDEX(INDIRECT(dms_RPT),dms_FRCP_start_row+dms_FRCPlength_Num-1) -> 2025 | D44: Finds the FRCP final year
B45: CRCP_final_year | C45: =INDEX(INDIRECT(dms_RPT),dms_CRCP_start_row+dms_CRCPlength_Num-1) -> 2020 | D45: Finds the CRCP final year
B46: PRCP_final_year | C46: =INDEX(INDIRECT(dms_RPT),dms_PRCP_start_row+dms_FRCPlength_Num-1) -> 2015 | D46: Finds the PRCP final year
B47: dms_Reset_final_year | C47: =INDEX(INDIRECT(dms_RPT),dms_RYE_start_row) -> 2025 | D47: For Resets and PTRM/RFMs (same as FRCP_final_year)
B48: dms_SpecifiedYear_final_year | C48: =FRY -> 2019 | D48: FRY from cover sheet
B49: dms_DollarReal_year | C49: =LEFT(CRCP_final_year,2)&RIGHT(CRCP_final_year,2) -> 2020 | D49: Uses the value in CRCP_final_year
B50: dms_Previous_DollarReal_year | C50: =LEFT(PRCP_final_year,2)&RIGHT(PRCP_final_year,2) -> 2015 | D50: Uses the value in PRCP_final_year
B51: dms_CRY_RYE | C51: =IFERROR(LEFT(CRY,2)&RIGHT(CRY,2),0) -> 2019 | D51: For ABC single year RINS
B52: dms_Reset_RYE | C52: =IF(dms_Model_Span>1,(LEFT(dms_Reset_final_year,2)&RIGHT(dms_Reset_final_year,2)),0) -> 2025 | D52: If model span > 1 then uses dms_Reset_RYE otherwise it's a multi year ABC and uses dms_Specified_RYE
B53: dms_Specified_RYE | C53: =IF(dms_MultiYear_ResponseFlag="Yes",(LEFT(dms_Specified_FinalYear,2)&RIGHT(dms_Specified_FinalYear,2)),0) -> 0 | D53: If multi year ABC - uses dms_Specified_FinalYear
B54: dms_Model_Span | C54: =INDEX(dms_Model_Span_List,MATCH(dms_Model,dms_Model_List)) -> 5 | D54: A result of 5 is used to signify that it is more than 1 year span
B55: dms_RYE_result | C55: =IF(dms_MultiYear_ResponseFlag="yes",dms_Specified_RYE,(IF(dms_Model_Span>1,dms_Reset_RYE,dms_CRY_RYE))) -> 2025 | D55: Nested IF - feeds into dms_RYE
B56: dms_Reset_Span | C56: =IF(dms_Reset_RYE>0,CONCATENATE(FRCP_y1," to ",FRCP_final_year),0) -> 2021 to 2025 | D56: Reset span of years as text
B57: dms_SpecifiedYear_Span | C57: =IF(dms_Specified_RYE>0,CONCATENATE(CRY," to ",dms_Specified_FinalYear),0) -> 0 | D57: Multi year ABC span of years as text
B58: dms_Header_Span | C58: =IF(dms_MultiYear_Flag=1,dms_SpecifiedYear_Span,IF(dms_Model_Span>1,dms_Reset_Span,CRY)) -> 2021 to 2025 | D58: NESTED IF - for Sheet Headers
B59: ABC RINS THAT SPAN MULTIPLE YEARS
B60: This is a multi year ABC RIN? | C60: No
C61: =IF(dms_MultiYear_ResponseFlag="No",0,1) -> 0 | D61: dms_MultiYear_Flag | E61: This is set from the answer provided above
C62: =IF(dms_MultiYear_Flag=1,FRY,"not a Multiple year submission") -> not a Multiple year submission | D62: dms_Specified_FinalYear | E62: The result here is returned to dms_CRCP_FinalYear_Result if response to Q in C73 is "yes" and dms_MultiYear_Flag is set to 1
B63: Start year for 5.2 in Multi year ABC RINS | C63: =IFERROR(IF(dms_MultiYear_Flag=1,FRY,CRY),"not an ABC") -> 2019 | D63: dms_0502_Inst_Year | E63: =IF(dms_MultiYear_Flag=1,FRY,CRY) | G63: For single year RINS this is CRY - multi year RINS need to start a the end of the span of years (ie. FRY)
B64: WHAT IS THE RYE?
B65: Reg Period Lengths
B66: PRCP length in years | C66: =INDEX(dms_PRCPlength_List,MATCH(dms_TradingName,dms_TradingName_List)) -> 5 | D66: dms_PRCPlength_Num | E66: =INDEX(dms_PRCPlength_List,MATCH(dms_TradingName,dms_TradingName_List))
B67: CRCP length in years | C67: =INDEX(dms_CRCPlength_List,MATCH(dms_TradingName,dms_TradingName_List)) -> 5 | D67: dms_CRCPlength_Num | E67: =INDEX(dms_CRCPlength_List,MATCH(dms_TradingName,dms_TradingName_List))
B68: FRCP length in years | C68: =INDEX(dms_FRCPlength_List,MATCH(dms_TradingName,dms_TradingName_List)) -> 5 | D68: dms_FRCPlength_Num | E68: =INDEX(dms_FRCPlength_List,MATCH(dms_TradingName,dms_TradingName_List))
B69: Single year RIN?
B70: Single Year ABC RIN ? | C70: =IF(dms_Model="EB",1,0) -> 0 | D70: dms_EB
C71: =IF(dms_Model="CA",1,0) -> 0 | D71: dms_CA | E71: =dms_SingleYear_Model
C72: =IF(dms_Model="ARR",1,0) -> 0 | D72: dms_ARR
B73: Is this a single Year ABC RIN? | C73: =IF(SUM(dms_SingleYear_Model)=1,"yes","no") -> no | D73: dms_SingleYearModel | E73: =IF(SUM(dms_SingleYear_Model)=1,"yes","no")
B74: Single Year Final Year Result | C74: =IF(AND(dms_SingleYearModel="yes",dms_MultiYear_Flag=0),CRY,0) -> 0 | D74: dms_SingleYear_FinalYear_Result | E74: =IFERROR(IF(SUM(dms_SingleYear_Model)<>0,(INDIRECT(dms_SingleYear_FinalYear_Ref)),"not a single year RIN"),"CRY not present")
B75: Multi year RIN?
B77: Multi Year Reset/Model? | C77: =IF(dms_Model_Span>1,"yes","no") -> yes
B78: Final year result for Reset/Model | C78: =IF(dms_Model_Span>1,dms_Reset_final_year,0) -> 2025
B80: Multi Year ABC RIN? | C80: =IF(dms_MultiYear_Flag=1,"yes","no") -> no
B81: Final year result for ABC multi year | C81: =IF(dms_MultiYear_Flag=1,C48,0) -> 0
B83: EB RINS
B84: Calendar Year for table 3.6 data | C84: =IFERROR(IF(dms_Segment="Transmission",dms_Cal_Year_B4_CRY,CRY),"CRY not present") -> 2019 | D84: dms_0306_Year | E84: =IF(dms_Segment="Transmission",dms_Cal_Year_B4_CRY,CRY)
B85: CA RINS
B86: Find how many rows in tables 6.3 sustained interruptions? | E86: dms_060301_MaxRows only returns a valid value when cover sheet is attached to a CA file
C87: =IF(dms_Model<>"CA","not a CA","Is a CA") -> not a CA | E87: =IF(dms_Model<>"CA","not a CA","Is a CA")
B88: dms_060301_Avg_Duration_Sustained_Int_Values present? | C88: =IFERROR(IF(INDEX(dms_060301_Avg_Duration_Sustained_Int_Values,1,1)<>"","yes","no"),"no") -> no | D88: dms_060301_checkvalue | E88: =IFERROR(IF(INDEX(dms_060301_Avg_Duration_Sustained_Int_Values,1,1)<>"","yes","no"),"no")
C89: =IF(AND(dms_Model="CA",(dms_060301_checkvalue="no")),"error - NR not present","no errors") -> no errors | E89: =IF(AND(dms_Model="CA",(dms_060301_checkvalue="no")),"error - NR not present","no errors")
B90: Table 6.3.1 - last row reference | C90: =IFERROR(IF(dms_Model="CA",LOOKUP(2,1/(dms_060301_Avg_Duration_Sustained_Int_Values<>""),(ROW(dms_060301_Avg_Duration_Sustained_Int_Values))),"not a CA"),"6.3 not present") -> not a CA | D90: dms_060301_LastRow | E90: =IFERROR(IF(dms_Model="CA",LOOKUP(2,1/(dms_060301_Avg_Duration_Sustained_Int_Values<>""),(ROW(dms_060301_Avg_Duration_Sustained_Int_Values))),"not a CA"),"6.3 not present")
B91: Table 6.3.1 - max number rows | C91: =IFERROR(IF(dms_Model="CA",(dms_060301_LastRow-15),"not a CA"),"error") -> not a CA | D91: dms_060301_MaxRows | E91: =IFERROR(IF(dms_Model="CA",(dms_060301_LastRow-15),"not a CA"),"error")
B92: Table 6.6.3 - Public lighting repair - no. business days | C92: =INDEX(dms_663_List,MATCH(dms_TradingName,dms_TradingName_List)) -> 2 | D92: dms_663 | E92: =INDEX(dms_663_List,MATCH(dms_TradingName,dms_TradingName_List))
B93: ARR or RESET RINS
B94: How many rows in tables 6.1 or 6.7? (leap year?) | C94: insert dms_LeapYear NR if required | E94: 'dms_LeapYear is used to determine dms_060701_Max_Rows BUT it is only found on worksheet 6.1 or 6.7 and the date value in the cell is used to determine whether it is a leap year
B95: Is dms_LeapYear named range present? | C95: =IFERROR(IF(dms_LeapYear,"yes"),"no") -> no
B96: Table 6.7.1 - includes a leap year? | C96: =IFERROR(IF(MONTH(DATE(YEAR(dms_LeapYear),2,29))=2,"is a leap year","not a leap year"), "dms_LeapYear not present") -> dms_LeapYear not present | D96: dms_LeapYear_Result | E96: =IFERROR(IF(MONTH(DATE(YEAR(dms_LeapYear),2,29))=2,"is a leap year","not a leap year"),"dms_LeapYear not present")
B97: MaxRows if Reset and leap year | C97: =IF(dms_LeapYear_Result="is a leap year",1827,1826) -> 1826 | D97: dms_060701_Reset_MaxRows | E97: =IF(dms_LeapYear_Result="is a leap year",1827,1826) | H97: number of days present in Reset RIN table
B98: MaxRows if ARR and leap year | C98: =IF(dms_LeapYear_Result="is a leap year",366,365) -> 365 | D98: dms_060701_ARR_MaxRows | E98: =IF(dms_LeapYear_Result="is a leap year",366,365) | H98: number of days present in ARR RIN table
B99: Table 6.7.1 - Max Rows (leap year/ non leap year) | C99: =IF(dms_Model="ARR",dms_060701_ARR_MaxRows,IF(dms_Model="Reset",dms_060701_Reset_MaxRows,"not a relevant RIN type")) -> 1826 | D99: dms_060701_MaxRows | E99: =IF(dms_Model="ARR",dms_060701_ARR_MaxRows,IF(dms_Model="Reset",dms_060701_Reset_MaxRows,"not a relevant RIN type"))
B100: How many columns in 6.7? (4 or 5 feeder categories) | C100: =IF(dms_FifthFeeder_flag_NSP="NO","This NSP has only 4 feeder categories","This NSP has 5 feeder categories") -> This NSP has only 4 feeder categories
B101: Table 6.7.1 - Last column (# of feeder categories > 4) | C101: =IF(dms_FifthFeeder_flag_NSP="NO",10,12) -> 10 | D101: dms_060701_MaxCols | E101: =IF(dms_FifthFeeder_flag_NSP="NO",8,10)
B102: Table 6.7.1 - Number of offset rows | C102: =IF(dms_Model="ARR",15,9) -> 9 | D102: dms_060701_OffsetRows | E102: =IF(dms_Model="ARR",15,9)
B103: Start date for telephone answering in 6.1 or 6.7? | E103: Using 060101 as naming standard not 060701 for start dates
B104: Table 6.1.1 and 6.7.1 - Start Date as Text | C104: =IF(dms_SingleYearModel="yes",(CONCATENATE(IF(LEN(CRY)=4,"1-Jan-","1-Jul-"),LEFT(CRY,4))),(CONCATENATE(IF(LEN(PRCP_y4)=4,"1-Jan-","1-Jul-"),LEFT(PRCP_y4,4)))) -> 1-Jan-2014 | D104: dms_060101_StartDateTxt | E104: =IF(SUM(dms_SingleYear_Model)>1,(CONCATENATE(IF(LEN(CRY)=4,"1-Jan-","1-Jul-"),LEFT(CRY,4))),(CONCATENATE(IF(LEN(CRCP_y4)=4,"1-Jan-","1-Jul-"),LEFT(CRCP_y4,4))))
B105: Table 6.1.1 and 6.7.1 - Start Date as Date Value | C105: =DATEVALUE(dms_060701_StartDateTxt) -> 41640 | D105: dms_060101_StartDateVal | E105: =DATEVALUE(dms_060701_StartDateTxt)
B106: ARRs
B107: How many rows in table 6.8? | C107: insert dms_060801_StartCell NR if required | E107: dms_060801_StartCell is only found on worksheet 6.8 and is used to determine the starting date for the date range
B108: Is dms_060801_StartCell named range present? | C108: yes | E108: =IFERROR(IF((ROW(dms_060801_StartCell)-1)=1,"yes","yes"),"no")
B109: Table 6.8 - Number of offset rows | C109: 12 | D109: dms_0608_OffsetRows | E109: =IFERROR(IF(dms_Model="ARR",(ROW(dms_060801_StartCell)-1),"not an ARR"),"6.8 error")
B110: Table 6.8 - Last row | C110: 0 | D110: dms_0608_LastRow | E110: =IFERROR(IF(dms_060801_StartCell<>"",IF(dms_Model="ARR",(LOOKUP(2,1/(dms_060801_01_Values<>""),(ROW(dms_060801_01_Values)))),"not an ARR"),0),"0")
B111: Table 6.8 - MaxRows | C111: =IFERROR(IF(dms_Model="ARR",(MAX(0,dms_0608_LastRow-dms_0608_OffsetRows)),"not an ARR"),"0") -> not an ARR | D111: dms_060801_MaxRows | E111: =IFERROR(IF(dms_Model="ARR",(MAX(0,dms_0608_LastRow-dms_0608_OffsetRows)),"not an ARR"),"0")
B112: TNSP RESET RINS
B113: Table 7.9.4 only appears in TNSPs Reset RIN
B114: Table 7.9.4 - first year | C114: =LEFT(PRCP_y3,4) -> 2013 | D114: dms_070904_Start_Year | E114: =LEFT(PRCP_y3,4)
B116: MISC
B117: Distribution Determination Reference | C117: =INDEX(dms_DeterminationRef_List,MATCH(dms_TradingName,dms_TradingName_List)) -> 2016-20 Distribution Determination | D117: dms_DeterminationRef
B118: Public lighting NSP? | C118: =INDEX(dms_Public_Lighting_List,MATCH(dms_TradingName,dms_TradingName_List)) -> YES | D118: dms_Public_Lighting | E118: =INDEX(dms_Public_Lighting_List,MATCH(dms_TradingName,dms_TradingName_List))
B119: CBD Feeder for this business | C119: =INDEX(dms_CBD_flag,MATCH(dms_TradingName,dms_TradingName_List)) -> NO | D119: dms_CBD_flag_NSP
B120: Urban Feeder for this business | C120: =INDEX(dms_Urban_flag,MATCH(dms_TradingName,dms_TradingName_List)) -> NO | D120: dms_Urban_flag_NSP
B121: Short rural Feeder for this business | C121: =INDEX(dms_ShortRural_flag,MATCH(dms_TradingName,dms_TradingName_List)) -> YES | D121: dms_ShortRural_flag_NSP
B122: Long rural Feeder for this business | C122: =INDEX(dms_LongRural_flag,MATCH(dms_TradingName,dms_TradingName_List)) -> NO | D122: dms_LongRural_flag_NSP
B123: Fifth Feeder Category (eg. TasNetworks (D)) | C123: =INDEX(dms_FeederType_5_flag,MATCH(dms_TradingName,dms_TradingName_List)) -> NO | D123: dms_FifthFeeder_flag_NSP | E123: =INDEX(dms_FeederType_5_flag,MATCH(dms_TradingName,dms_TradingName_List))
B125: DISCARD FILES
B126: discard this record? | C126: NO | D126: dms_DISCARD | E126: If record is to be discarded from DB set this flag to YES
B128: SUBSET FILES
B129: Is this Submission File a Subset File | C129: NO | D129: dms_Partial
B132: REGULATORY YEARS FOR MULTI RYE SUBMISSIONS
B133: Multiple RYE flag | C133: NO | D133: dms_Multi_RYE_flag
C134: Manually specify RYE | D134: Named ranges to apply
C135: 2013 | D135: dms_RYE_01
C136: 2014 | D136: dms_RYE_02
C137: 2015 | D137: dms_RYE_03
C138: 2016 | D138: dms_RYE_04
C139: 2017 | D139: dms_RYE_05
C140: 2018 | D140: dms_RYE_06
C141: 2019 | D141: dms_RYE_07
C142: 2020 | D142: dms_RYE_08
C143: 2021 | D143: dms_RYE_09

Sheet Business & other details
V1: =INDEX(dms_Worksheet_List,MATCH(dms_Model,dms_Model_List)) -> REGULATORY REPORTING STATEMENT
V2: =INDEX(dms_TradingNameFull_List,MATCH(dms_TradingName,dms_TradingName_List)) -> United Energy
V3: =dms_Header_Span -> 2021 to 2025
V4: BUSINESS & OTHER DETAILS
V6: INSTRUCTIONS
V7: Complete the following business details regulatory template before entering data or values in any other regulatory template. This regulatory template is linked to other cells within the spreadsheet and automatically generates column headings and conditional formatting to distinguish business specific input and non-input cells.
Q9: SUBMISSION PARTICULARS INPUT SHEET
V12: ENTITY DETAILS
V14: Business Name
V16: Short name | AL16: United Energy
V17: ACN/ABN | AL17: =INDEX(dms_ABN_List,MATCH(dms_TradingName,dms_TradingName_List)) -> 70064651029
V21: Business Address | BQ21: Postal Address
V23: Address 1 | AL23: =INDEX(dms_Addr1_List,MATCH(dms_TradingName,dms_TradingName_List)) -> 43-45 Centreway | BI23: Address 1 | BQ23: =INDEX(dms_PAddr1_List,MATCH(dms_TradingName,dms_TradingName_List)) -> PO Box 449
V24: Address 2 | AL24: =IF(ISBLANK(INDEX(dms_Addr2_List,MATCH(dms_TradingName,dms_TradingName_List))),"",(INDEX(dms_Addr2_List,MATCH(dms_TradingName,dms_TradingName_List)))) ->  | BI24: Address 2 | BQ24: =IF(ISBLANK(INDEX(dms_PAddr2_List,MATCH(dms_TradingName,dms_TradingName_List))),"",(INDEX(dms_PAddr2_List,MATCH(dms_TradingName,dms_TradingName_List)))) -> 
V25: Suburb | AL25: =INDEX(dms_Suburb_List,MATCH(dms_TradingName,dms_TradingName_List)) -> MOUNT WAVERLEY | BI25: Suburb | BQ25: =INDEX(dms_PSuburb_List,MATCH(dms_TradingName,dms_TradingName_List)) -> MOUNT WAVERLEY
V26: State | AL26: =INDEX(dms_State_List,MATCH(dms_TradingName,dms_TradingName_List)) -> Vic | AV26: Post code | AX26: 3000 | BI26: State | BQ26: =INDEX(dms_PState_List,MATCH(dms_TradingName,dms_TradingName_List)) -> Vic | CA26: Post code | CC26: 8001
BA28: `
V30: Contact Names
V32: Name | AL32: Brent Cleeve | BI32: Name
V33: Phone | AL33: (03) 9683 4465 | BI33: Phone
V34: Email | AL34: bcleeve@powercor.com.au | BI34: Email
V39: REGULATORY CONTROL PERIODS
V42: RESETS | AF42: Forthcoming period | AR42: 2021 | BA42: =FRCP_y2 -> 2022 | BJ42: =FRCP_y3 -> 2023 | BS42: =FRCP_y4 -> 2024 | CB42: =FRCP_y5 -> 2025
AR43: =FRCP_y6 -> 2026 | BA43: =FRCP_y7 -> 2027 | BJ43: =FRCP_y8 -> 2028 | BS43: =FRCP_y9 -> 2029 | CB43: =FRCP_y10 -> 2030
AR44: =FRCP_y11 -> 2031 | BA44: =FRCP_y12 -> 2032 | BJ44: =FRCP_y13 -> 2033 | BS44: =FRCP_y14 -> 2034 | CB44: =FRCP_y15 -> 2035
AF46: Current period | AR46: =CRCP_y1 -> 2016 | BA46: =CRCP_y2 -> 2017 | BJ46: =CRCP_y3 -> 2018 | BS46: =CRCP_y4 -> 2019 | CB46: =CRCP_y5 -> 2020
AR47: =CRCP_y6 -> 2021 | BA47: =CRCP_y7 -> 2022 | BJ47: =CRCP_y8 -> 2023 | BS47: =CRCP_y9 -> 2024 | CB47: =CRCP_y10 -> 2025
AR48: =CRCP_y11 -> 2026 | BA48: =CRCP_y12 -> 2027 | BJ48: =CRCP_y13 -> 2028 | BS48: =CRCP_y14 -> 2029 | CB48: =CRCP_y15 -> 2030
AF50: Previous period | AR50: =PRCP_y1 -> 2011 | BA50: =PRCP_y2 -> 2012 | BJ50: =PRCP_y3 -> 2013 | BS50: =PRCP_y4 -> 2014 | CB50: =PRCP_y5 -> 2015
AR51: =PRCP_y6 -> 2016 | BA51: =PRCP_y7 -> 2017 | BJ51: =PRCP_y8 -> 2018 | BS51: =PRCP_y9 -> 2019 | CB51: =PRCP_y10 -> 2020
AR52: =PRCP_y11 -> 2021 | BA52: =PRCP_y12 -> 2022 | BJ52: =PRCP_y13 -> 2023 | BS52: =PRCP_y14 -> 2024 | CB52: =PRCP_y15 -> 2025
V54: ANNUAL RINS | AF54: Commencing year | AR54: 2019
AF56: Final year | AR56: 2019
V60: SUBMISSION DETAILS
AF62: RIN type | AR62: =INDIRECT(dms_Model) -> Regulatory Reporting (Reset)
V64: THIS FILE | AF64: Source | AR64: Regulatory proposal
AF66: Data Quality | AR66: Consolidated
AF68: Confidentiality Status | AR68: Public
AF70: Amended RIN Amendment Reason | AR70: .
AF74: Submission Date | AR74: 2020-01-31

Sheet 7.5 EBSS
B1: =INDEX(dms_Worksheet_List,MATCH(dms_Model,dms_Model_List)) -> REGULATORY REPORTING STATEMENT
B2: =INDEX(dms_TradingNameFull_List,MATCH(dms_TradingName,dms_TradingName_List)) -> United Energy
B3: =dms_Header_Span -> 2021 to 2025
B4: 7.5 EBSS
B6: Intstructions
B7: =CONCATENATE(dms_TradingName, " is required to populate all input cells (yellow) in this worksheet.") -> United Energy is required to populate all input cells (yellow) in this worksheet.
B8: Efficiency gains are calculated using the formulae below. Adjusted target and actual amounts are used to calculate the carry over amounts. We will calculate the efficiency gain in first year (n) as follows: En = (Fn – An) – (Fn-1 – An-1) + (Fb – Ab) where Fn is the forecast opex we approved for the first year, and An is the actual opex incurred in the first year, and so on. The formula references the base year used to forecast opex. Actual opex in the final year of the current regulatory period should be set so that any incremental efficiency gains made after the base year sum to zero.
B12: Actual and estimated inflation
C13: Actual | M13: Estimated
C14: 2009 | D14: 2010 | E14: 2011 | F14: 2012 | G14: 2013 | H14: 2014 | I14: 2015 | J14: 2016 | K14: 2017 | L14: 2018 | M14: 2019 | N14: 2020 | O14: HY2021
B15: ABS CPI index - December (old base) | D15: 174 | E15: 179.4
B16: ABS CPI index - December (rebased) | E16: 99.8 | F16: 102 | G16: 104.8 | H16: 106.6 | I16: 108.4 | J16: 110 | K16: 112.1 | L16: 114.1 | M16: 115.9423167 | N16: 118.261163 | O16: 119.6718828
B17: Inflation rate (per cent) | E17: =E15/D15-1 -> 0.03103448276 | F17: =+F16/E16-1 -> 0.02204408818 | G17: 0.02745098039 | H17: 0.01717557252 | I17: 0.01688555347 | J17: 0.0147601476 | K17: 0.01909090909 | L17: 0.0178412132 | M17: =+M16/L16-1 -> 0.01614650914 | N17: =+N16/M16-1 -> 0.02 | O17: =+O16/N16-1 -> 0.01192885125
B18: Reconstructed cumulative index June 2021 = 1 | D18: =E18/(1+E17) -> 0.8088448541 | E18: =F18/(1+F17) -> 0.8339469358 | F18: 0.8523305356 | G18: 0.8757278444 | H18: 0.8907689715 | I18: 0.9058100986 | J18: 0.9191799893 | K18: 0.9367279709 | L18: =M18/(1+M17) -> 0.9534403344 | M18: =N18/(1+N17) -> 0.9688350675 | N18: =O18/(1+O17) -> 0.9882117688 | O18: 1
A21: -1
B22: 7.5.1 - The carryover amounts that arise from applying the EBSS during the current regulatory control period
B24: Base year for the previous period (drop down menu) | C24: 2014
B25: 7.5.1.1 - Opex allowance applicable to EBSS (EBSS target)
C26: =CONCATENATE("$m, real ",dms_RPTMonth," ",(LEFT(PRCP_y1,2)&RIGHT(PRCP_y1,2))-1) -> $m, real December 2010 | H26: =CONCATENATE("$m, real ",dms_RPTMonth," ",(LEFT(PRCP_y5,2)&RIGHT(PRCP_y5,2))) -> $m, real December 2015 | O26: $m, real June 2021
C27: Previous period | H27: Current regulatory control period | O27: Previous period | Q27: Current regulatory control period
C28: =PRCP_y1 -> 2011 | D28: =PRCP_y2 -> 2012 | E28: =PRCP_y3 -> 2013 | F28: =PRCP_y4 -> 2014 | G28: =PRCP_y5 -> 2015 | H28: =CRCP_y1 -> 2016 | I28: =CRCP_y2 -> 2017 | J28: =CRCP_y3 -> 2018 | K28: =CRCP_y4 -> 2019 | L28: =CRCP_y5 -> 2020 | M28: HY2021 | O28: =dms_PRCP_BaseYear -> 2014 | P28: =PRCP_y5 -> 2015 | Q28: =CRCP_y1 -> 2016 | R28: =CRCP_y2 -> 2017 | S28: =CRCP_y3 -> 2018 | T28: =CRCP_y4 -> 2019 | U28: =CRCP_y5 -> 2020 | V28: HY2021
B29: Total opex allowance | F29: 112.7806326 | G29: 114.283604 | H29: 140.2504759 | I29: 143.2544446 | J29: 146.3656719 | K29: 147.2773776 | L29: 149.1985629 | O29: =+LOOKUP(dms_PRCP_BaseYear,C$28:G$28,C29:G29)/$D$18 -> 139.4341968 | P29: =+G29/$D$18 -> 141.2923671 | Q29: =+H29/$I$18 -> 154.8343037 | R29: 158.1506375 | S29: 161.5853832 | T29: 162.5918919 | U29: 164.71285 | V29: 0
B30: Approved excludable costs - allowance
B31: Debt raising costs | F31: -0.87642101 | G31: -0.8951727307 | H31: -1.066180574 | I31: -1.108781609 | J31: -1.15514145 | K31: -1.182925509 | L31: -1.202285293 | O31: =+LOOKUP(dms_PRCP_BaseYear,C$28:G$28,C31:G31)/$D$18 -> -1.083546499 | P31: =+G31/$D$18 -> -1.106729834 | Q31: =H31/$I$18 -> -1.177046465 | R31: -1.224077332 | S31: -1.275257862 | T31: -1.305931023 | U31: -1.327303918 | V31: 0
B32: Self insurance | F32: -0.024 | G32: -0.024 | O32: -0.02967194497 | P32: -0.02967194497 | Q32: 0 | R32: 0 | S32: 0 | T32: 0 | U32: 0 | V32: 0
B33: Defined benefit superannuation | F33: 0 | G33: 0 | O33: =+LOOKUP(dms_PRCP_BaseYear,C$28:G$28,C33:G33)/$D$18 -> 0 | P33: =+G33/$D$18 -> 0 | Q33: =H33/$I$18 -> 0 | R33: =I33/$I$18 -> 0 | S33: =J33/$I$18 -> 0 | T33: =K33/$I$18 -> 0 | U33: =L33/$I$18 -> 0 | V33: =M33/$I$18 -> 0
B34: Non-network alternatives | F34: 0 | G34: 0 | O34: 0 | P34: 0 | Q34: 0 | R34: 0 | S34: 0 | T34: 0 | U34: 0 | V34: 0
B35: DMIA | F35: -0.4 | G35: -0.4 | O35: -0.4945324162 | P35: -0.4945324162 | Q35: 0 | R35: 0 | S35: 0 | T35: 0 | U35: 0 | V35: 0
B36: GSL payments | F36: -0.2447568082 | G36: -0.2386128254 | H36: -0.6041375397 | I36: -0.6041375397 | J36: -0.6041375397 | K36: -0.6041375397 | L36: -0.6041375397 | O36: -0.3026004393 | P36: -0.2950044427 | Q36: -0.6669582738 | R36: -0.6669582738 | S36: -0.6669582738 | T36: -0.6669582738 | U36: -0.6669582738 | V36: 0
B37: Capitalisation policy changes | F37: 0 | G37: 0 | O37: 0 | P37: 0 | Q37: 0 | R37: 0 | S37: 0 | T37: 0 | U37: 0 | V37: 0
B38: Opex associated with pass throughs | F38: 0.2084731078 | G38: 0.2615710864 | O38: 0.2577417743 | P38: 0.3233884534 | Q38: 0 | R38: 0 | S38: 0 | T38: 0 | U38: 0 | V38: 0
B39: Other adjustments or exclusions required by the EBSS | F39: 0 | G39: 0 | O39: 0 | P39: 0 | Q39: 0 | R39: 0 | S39: 0 | T39: 0 | U39: 0 | V39: 0
B40: Forecast opex for EBSS purposes | C40: =SUM(C29:C39) -> 0 | D40: 0 | E40: 0 | F40: 111.4439278 | G40: 112.9873896 | H40: =SUM(H29:H39) -> 138.5801578 | I40: 141.5415254 | J40: 144.6063929 | K40: 145.4903145 | L40: 147.39214 | M40: 0 | O40: =+SUM(O29:O39) -> 137.7815873 | P40: =+SUM(P29:P39) -> 139.6898169 | Q40: =+SUM(Q29:Q39) -> 152.990299 | R40: 156.2596019 | S40: 159.6431671 | T40: 160.6190026 | U40: 162.7185878 | V40: 0
B42: 7.5.1.2 - Actual and estimated opex applicable to EBSS
C43: $m, Actual | O43: $m, real June 2021
C44: Previous period | H44: Current regulatory control period | O44: Previous period | Q44: Current regulatory control period
C45: =PRCP_y1 -> 2011 | D45: =PRCP_y2 -> 2012 | E45: =PRCP_y3 -> 2013 | F45: =PRCP_y4 -> 2014 | G45: =PRCP_y5 -> 2015 | H45: =CRCP_y1 -> 2016 | I45: =CRCP_y2 -> 2017 | J45: =CRCP_y3 -> 2018 | K45: =CRCP_y4 -> 2019 | L45: =CRCP_y5 -> 2020 | M45: HY2021 | O45: =dms_PRCP_BaseYear -> 2014 | P45: =PRCP_y5 -> 2015 | Q45: =CRCP_y1 -> 2016 | R45: =CRCP_y2 -> 2017 | S45: =CRCP_y3 -> 2018 | T45: =CRCP_y4 -> 2019 | U45: =CRCP_y5 -> 2020 | V45: HY2021
B46: Total opex | F46: 121.89 | G46: 117.7214946 | H46: 138.4279433 | I46: 133.0299763 | J46: 109.98415 | K46: 117.012 | O46: =+LOOKUP(dms_PRCP_BaseYear,C$45:G$45,C46:G46)/LOOKUP(dms_PRCP_BaseYear,C$14:N$14,C$18:N$18)*(1+LOOKUP(dms_PRCP_BaseYear,C$14:N$14,C$17:N$17))^0.5 -> 138.0069498 | P46: =+G46/I$18*(1+I$17)^0.5 -> 131.0553178 | Q46: =+H46/J$18*(1+J$17)^0.5 -> 151.7067507 | R46: =+I46/K$18*(1+K$17)^0.5 -> 143.3647854 | S46: =+J46/L$18*(1+L$17)^0.5 -> 116.3795298 | T46: =+K46/M$18*(1+M$17)^0.5 -> 121.7471258 | U46: =+L46/N$18*(1+N$17)^0.5 -> 0 | V46: 0
B47: Approved excludable costs
B48: Debt raising costs | F48: 0 | G48: 0 | H48: 0 | I48: 0 | J48: 0 | K48: 0 | O48: =+LOOKUP(dms_PRCP_BaseYear,C$45:G$45,C48:G48)/LOOKUP(dms_PRCP_BaseYear,C$14:N$14,C$18:N$18)*(1+LOOKUP(dms_PRCP_BaseYear,C$14:N$14,C$17:N$17))^0.5 -> 0 | P48: =G48/I$18*(1+I$17)^0.5 -> 0 | Q48: 0 | R48: 0 | S48: 0 | T48: 0 | U48: =L48/N$18*(1+N$17)^0.5 -> 0 | V48: =M48/O$18*(1+O$17)^0.5 -> 0
B49: Self insurance | F49: 0 | G49: 0 | H49: 0 | I49: 0 | J49: 0 | K49: 0 | O49: 0 | P49: 0 | Q49: 0 | R49: 0 | S49: 0 | T49: 0 | U49: 0 | V49: 0
B50: Defined benefit superannuation | F50: 0 | G50: 0 | H50: 0 | I50: 0 | J50: 0 | K50: 0 | O50: 0 | P50: =G50/I$18*(1+I$17)^0.5 -> 0 | Q50: =H50/J$18*(1+J$17)^0.5 -> 0 | R50: =I50/K$18*(1+K$17)^0.5 -> 0 | S50: =J50/L$18*(1+L$17)^0.5 -> 0 | T50: =K50/M$18*(1+M$17)^0.5 -> 0 | U50: =L50/N$18*(1+N$17)^0.5 -> 0 | V50: =M50/O$18*(1+O$17)^0.5 -> 0
B51: Non-network alternatives | F51: 0 | G51: 0 | H51: 0 | I51: 0 | J51: 0 | K51: 0 | O51: =+LOOKUP(dms_PRCP_BaseYear,C$45:G$45,C51:G51)/LOOKUP(dms_PRCP_BaseYear,C$14:N$14,C$18:N$18)*(1+LOOKUP(dms_PRCP_BaseYear,C$14:N$14,C$17:N$17))^0.5 -> 0 | P51: =G51/I$18*(1+I$17)^0.5 -> 0 | Q51: =H51/J$18*(1+J$17)^0.5 -> 0 | R51: =I51/K$18*(1+K$17)^0.5 -> 0 | S51: =J51/L$18*(1+L$17)^0.5 -> 0 | T51: =K51/M$18*(1+M$17)^0.5 -> 0 | U51: =L51/N$18*(1+N$17)^0.5 -> 0 | V51: =M51/O$18*(1+O$17)^0.5 -> 0
B52: DMIA | F52: -0.661715 | G52: -0.89073434 | H52: -0.50545343 | I52: -0.35026672 | J52: -0.21057397 | K52: 0 | O52: -0.7492105079 | P52: -0.9916241073 | Q52: -0.5539394409 | R52: -0.3774781785 | S52: -0.2228184663 | T52: 0 | U52: 0 | V52: 0
B53: GSL payments | F53: -1.124 | G53: -0.91665 | H53: -0.71394 | I53: -0.7921 | J53: -0.6562093493 | K53: -0.6666622416 | O53: -1.272621311 | P53: -1.020475126 | Q53: -0.7824252463 | R53: -0.8536365235 | S53: -0.6943667386 | T53: -0.6936400695 | U53: 0 | V53: 0
B54: Opex associated with cost pass through | F54: 0 | G54: 0 | H54: 0 | I54: 0 | J54: 0 | K54: 0 | O54: 0 | P54: 0 | Q54: 0 | R54: 0 | S54: 0 | T54: 0 | U54: 0 | V54: 0 | X54: =CONCATENATE(dms_TradingName," to nominate base year used to forecast opex (drop down menu)") -> United Energy to nominate base year used to forecast opex (drop down menu)
B55: Capitalisation policy changes | F55: 0 | G55: 0 | H55: 0 | I55: 0 | J55: 0 | K55: 0 | O55: 0 | P55: 0 | Q55: 0 | R55: 0 | S55: 0 | T55: 0 | U55: 0 | V55: 0
B56: Movements in provisions related to opex | F56: -0.760137 | G56: -0.01220248452 | H56: -2.204837125 | I56: 3.05363073 | J56: 2.996356665 | K56: 1.281716757 | O56: -0.8606463929 | P56: -0.0135846091 | Q56: -2.41633783 | R56: 3.290860649 | S56: 3.170589397 | T56: 1.333584002 | U56: 0 | V56: 0
B57: Other adjustments or exclusions required by the EBSS | F57: 0.864999 | G57: 0 | H57: 0 | I57: 0 | J57: 0 | K57: 0 | O57: 0.9793738092 | P57: 0 | Q57: 0 | R57: 0 | S57: 0 | T57: 0 | U57: 0 | V57: 0
B58: Actual opex for EBSS purposes | C58: =SUM(C46:C57) -> 0 | D58: 0 | E58: 0 | F58: 120.209147 | G58: 115.9019077 | H58: =SUM(H46:H57) -> 135.0037127 | I58: =SUM(I46:I57) -> 134.9412403 | J58: =SUM(J46:J57) -> 112.1137233 | K58: =SUM(K46:K57) -> 117.6270545 | O58: =O46+SUM(O48:O57) -> 136.1038454 | P58: =P46+SUM(P48:P57) -> 129.0296339 | Q58: =Q46+SUM(Q48:Q57) -> 147.9540482 | R58: 145.4245313 | S58: 118.632934 | T58: =T46+SUM(T48:T57) -> 122.3870698 | U58: =(U40-(LOOKUP($W$58,$Q$28:$U$28,$Q$40:$U$40)-LOOKUP($W$58,$Q$45:$U$45,$Q$58:$U$58)))+W59 -> 124.486655 | V58: =V46+SUM(V48:V57) -> 0 | W58: 2019
U59: =U46+SUM(U48:U57) -> 0 | X59: Base year non-recurrent efficiency gain ($m)
O62: Incremental gain $m, real June 2021
P63: =(P40-P58)-(O40-O58) -> 8.982441162 | Q63: =IF(dms_EBSS_status="No",(Q40-Q58)-(P40-P58)+IF(O28=P28,P40-P58,O40-O58),(Q40-Q58)) -> -3.946190408 | R63: =(R40-R58)-(Q40-Q58) -> 5.798819875 | S63: =(S40-S58)-(R40-R58) -> 30.17516241 | T63: =(T40-T58)-(S40-S58) -> -2.778300249 | U63: =(U40-U58)-(T40-T58) -> 0 | V63: 0
O65: Incremental gain for 2020 & HY2021 true up $m, real June 2021
U66: =(U40-U59)-(LOOKUP($W$58,$Q$28:$U$28,$Q$40:$U$40)-LOOKUP($W$58,$Q$45:$U$45,$Q$58:$U$58))+W59 -> 124.486655 | V66: =(V40-V58)-(U40-U59)/2 -> -81.35929388
O68: Carryover
Q69: Current regulatory control period | W69: Forthcoming regulatory control period
Q70: $m, real June 2021
Q71: =CRCP_y1 -> 2016 | R71: =CRCP_y2 -> 2017 | S71: =CRCP_y3 -> 2018 | T71: =CRCP_y4 -> 2019 | U71: =CRCP_y5 -> 2020 | V71: HY2021 | W71: 2021-22 | X71: 2022-23 | Y71: 2023-24 | Z71: 2024-25 | AA71: 2025-26 | AB71: Total
O72: =CRCP_y1 -> 2016 | R72: =$Q$63 -> -3.946190408 | S72: =$Q$63 -> -3.946190408 | T72: =$Q$63 -> -3.946190408 | U72: =$Q$63 -> -3.946190408 | V72: =$Q$63/2 -> -1.973095204 | W72: =$Q$63/2 -> -1.973095204
O73: =CRCP_y2 -> 2017 | S73: =$R$63 -> 5.798819875 | T73: =$R$63 -> 5.798819875 | U73: =$R$63 -> 5.798819875 | V73: =$R$63/2 -> 2.899409937 | W73: 5.798819875 | X73: =$R$63/2 -> 2.899409937
O74: =CRCP_y3 -> 2018 | T74: =$S$63 -> 30.17516241 | U74: =$S$63 -> 30.17516241 | V74: =$S$63/2 -> 15.08758121 | W74: =$S$63 -> 30.17516241 | X74: 30.17516241 | Y74: =$S$63/2 -> 15.08758121
O75: =CRCP_y4 -> 2019 | U75: =$T$63 -> -2.778300249 | V75: =$T$63/2 -> -1.389150125 | W75: =$T$63 -> -2.778300249 | X75: =$T$63 -> -2.778300249 | Y75: =$T$63 -> -2.778300249 | Z75: =$T$63/2 -> -1.389150125
O76: =CRCP_y5 -> 2020 | V76: =$U$63/2 -> 0 | W76: =$U$63 -> 0 | X76: 0 | Y76: 0 | Z76: 0 | AA76: =$U$63/2 -> 0
O77: HY2021 | W77: =$V$63 -> 0 | X77: =$V$63 -> 0 | Y77: 0 | Z77: 0 | AA77: 0
O78: Total Carryover Amount ($m, June 2021) | V78: =-P63/2 -> -4.491220581 | W78: =+SUM(W72:W77) -> 31.22258684 | X78: =+SUM(X73:X77) -> 30.2962721 | Y78: =+SUM(Y74:Y77) -> 12.30928096 | Z78: =+SUM(Z75:Z77) -> -1.389150125 | AA78: =+SUM(AA76:AA77) -> 0 | AB78: =+SUM(W78:AA78) -> 72.43898977
O80: PTRM inputs ($m, June 2021) | V80: =V78 -> -4.491220581 | W80: 31.22258684 | X80: 30.2962721 | Y80: 12.30928096 | Z80: -1.389150125 | AA80: 0 | AB80: =+SUM(W80:AA80) -> 72.43898977
Q82: =CRCP_y1 -> 2016 | R82: =CRCP_y2 -> 2017 | S82: =CRCP_y3 -> 2018 | T82: =CRCP_y4 -> 2019 | U82: =CRCP_y5 -> 2020 | V82: HY2021 | W82: 2021-22 | X82: 2022-23 | Y82: 2023-24 | Z82: 2024-25 | AA82: 2025-26 | AB82: 2026-27 | AC82: Total
O83: 2020 true up | AA83: =-U66/2 -> -62.24332749
O84: HY2021 true up | AB84: =V66 -> -81.35929388
B87: 7.5.2 - Proposed forecast opex for the EBSS for the forthcoming regulatory control period
C88: Forthcoming regulatory control period
C89: $m, real June 2021
C90: 2021-22 | D90: 2022-23 | E90: 2023-24 | F90: 2024-25 | G90: 2025-26
B91: Forecast opex | C91: 307.4290736 | D91: 296.0132165 | E91: 304.9467123 | F91: 310.1663183 | G91: 318.4403222 | H91: =+SUM(C91:G91) -> 1536.995643
B92: Less excluded costs
B93: Debt raising costs | C93: -2.223516645 | D93: -2.37019345 | E93: -2.505833723 | F93: -2.5909506 | G93: -2.650591529 | H93: =+SUM(C93:G93) -> -12.34108595
B94: GSL payments | C94: -2.35706287 | D94: -2.35706287 | E94: -2.35706287 | F94: -2.35706287 | G94: -2.35706287 | H94: =+SUM(C94:G94) -> -11.78531435
H95: 0
H96: 0
B97: Adjusted forecast opex ($m, June 2021 | C97: =+C91-SUM(C93:C96) -> 312.0096531 | D97: =+D91-SUM(D93:D96) -> 300.7404728 | E97: =+E91-SUM(E93:E96) -> 309.8096089 | F97: =+F91-SUM(F93:F96) -> 315.1143318 | G97: =+G91-SUM(G93:G96) -> 323.4479766 | H97: =SUM(H91:H96) -> 1512.869243
